[Event "Campeonato de Aragón Individual Absoluto 2022"]
[Site "Zaragoza, Spain"]
[Date "2022.08.31"]
[Round "5.5"]
[White "Jimenez Fernandez, Alejandro"]
[Black "Lorente Melcon, Maximo"]
[Result "1/2-1/2"]
[TimeControl "90 min + 30 sg"]
[WhiteElo "1982"]
[BlackElo "1851"]

1. d4 {[%clk 01:30:54]} {[%emt 00:00:04]} Nf6 {[%clk 01:30:59]} 2. Nf3 {[%clk
01:31:08]} {[%emt 00:00:18]} e6 {[%clk 01:31:20]} {[%emt 00:00:09]} 3. c4
{[%clk 01:31:04]} {[%emt 00:00:33]} Bb4+ {[%clk 01:31:42]} {[%emt 00:00:09]} 4.
Nbd2 {[%clk 01:30:08]} {[%emt 00:01:26]} b6 {[%clk 01:31:59]} {[%emt 00:00:14]}
5. g3 {[%clk 01:29:51]} {[%emt 00:00:46]} Bb7 {[%clk 01:31:53]} {[%emt
00:00:37]} 6. Bg2 {[%clk 01:30:03]} {[%emt 00:00:18]} O-O {[%clk 01:31:31]}
{[%emt 00:00:51]} 7. O-O {[%clk 01:29:25]} {[%emt 00:01:07]} Be7 {[%clk
01:18:15]} {[%emt 00:13:47]} 8. b3 {[%clk 01:19:58]} {[%emt 00:09:57]} d5
{[%clk 01:13:37]} {[%emt 00:05:08]} 9. cxd5 {[%clk 01:15:14]} {[%emt 00:05:14]}
exd5 {[%clk 01:13:00]} {[%emt 00:01:08]} 10. Bb2 {[%clk 01:11:38]} {[%emt
00:04:05]} Nbd7 {[%clk 01:12:07]} {[%emt 00:01:23]} 11. Rc1 {[%clk 01:06:35]}
{[%emt 00:05:33]} c5 {[%clk 01:10:56]} {[%emt 00:01:42]} 12. dxc5 {[%clk
00:58:43]} {[%emt 00:08:22]} Bxc5 {[%clk 00:56:18]} {[%emt 00:15:07]} 13. Nd4
{[%clk 00:57:07]} {[%emt 00:02:06]} g6 {[%clk 00:45:46]} {[%emt 00:11:03]} 14.
N2f3 {[%clk 00:51:14]} {[%emt 00:06:23]} Rc8 {[%clk 00:43:35]} {[%emt
00:02:42]} 15. a3 {[%clk 00:47:53]} {[%emt 00:03:52]} Re8 {[%clk 00:37:44]}
{[%emt 00:06:21]} 16. b4 {[%clk 00:46:18]} {[%emt 00:02:04]} Bf8 {[%clk
00:37:26]} {[%emt 00:00:48]} 17. Qb3 {[%clk 00:45:33]} {[%emt 00:00:45]} Qe7
{[%clk 00:35:01]} {[%emt 00:02:55]} 18. e3 {[%clk 00:44:50]} {[%emt 00:01:43]}
Ne4 {[%clk 00:33:35]} {[%emt 00:01:56]} 19. Rfd1 {[%emt 00:05:47]} Bg7 {[%clk
00:27:34]} {[%emt 00:06:27]} 20. Nb5 {[%clk 00:34:19]} {[%emt 00:05:48]} a6
{[%clk 00:22:28]} {[%emt 00:05:37]} 21. Bxg7 {[%clk 00:33:26]} {[%emt
00:01:23]} Rxc1 {[%clk 00:19:28]} {[%emt 00:03:30]} 22. Rxc1 {[%clk 00:33:27]}
{[%emt 00:00:29]} Kxg7 {[%clk 00:19:34]} {[%emt 00:00:25]} 23. Rc7 {[%clk
00:28:07]} {[%emt 00:05:49]} Rb8 {[%clk 00:13:50]} {[%emt 00:06:16]} 24. Nbd4
{[%clk 00:27:10]} {[%emt 00:01:25]} Qd6 {[%clk 00:13:35]} {[%emt 00:00:46]} 25.
Qb2 {[%clk 00:23:56]} {[%emt 00:03:44]} Kg8 {[%clk 00:12:58]} {[%emt 00:01:07]}
26. Rc2 {[%clk 00:22:46]} {[%emt 00:01:40]} b5 {[%clk 00:11:23]} {[%emt
00:02:05]} 27. Nd2 {[%clk 00:20:07]} {[%emt 00:03:09]} Nb6 {[%clk 00:02:59]}
{[%emt 00:08:55]} 28. Qc1 {[%clk 00:19:20]} {[%emt 00:01:15]} Nxd2 {[%clk
00:02:00]} {[%emt 00:01:31]} 29. Rxd2 {[%clk 00:17:35]} {[%emt 00:02:14]} Nc4
{[%clk 00:02:29]} 30. Rd3 {[%clk 00:17:50]} {[%emt 00:00:15]} Rc8 {[%clk
00:02:17]} {[%emt 00:00:43]} 31. Qa1 {[%clk 00:16:33]} {[%emt 00:01:45]} Qf6
{[%clk 00:02:04]} {[%emt 00:00:44]} 32. Bh3 {[%clk 00:14:11]} {[%emt 00:02:50]}
Rc7 {[%clk 00:01:46]} {[%emt 00:00:50]} 33. Bg2 {[%clk 00:04:38]} {[%emt
00:10:02]} h5 {[%clk 00:01:32]} {[%emt 00:00:44]} 34. h4 {[%clk 00:04:41]}
{[%emt 00:00:27]} Rc8 {[%clk 00:01:41]} {[%emt 00:00:21]} 35. Qa2 {[%clk
00:04:23]} {[%emt 00:00:46]} Qb6 {[%clk 00:00:49]} {[%emt 00:01:25]} 36. Ne2
{[%clk 00:03:59]} {[%emt 00:00:53]} Rd8 {[%clk 00:00:34]} {[%emt 00:00:45]} 37.
Qa1 {[%clk 00:03:44]} {[%emt 00:00:45]} Qc7 {[%clk 00:00:37]} {[%emt 00:00:27]}
38. Nf4 {[%clk 00:03:34]} {[%emt 00:00:39]} Ne5 {[%clk 00:00:48]} {[%emt
00:00:20]} 39. Rd2 {[%clk 00:02:49]} {[%emt 00:01:15]} Rc8 {[%clk 00:00:50]}
{[%emt 00:00:29]} 40. Nxd5 {[%clk 00:02:00]} {[%emt 00:01:17]} Qc1+ {[%clk
00:00:46]} {[%emt 00:00:36]} 41. Rd1 {[%clk 00:02:13]} {[%emt 00:00:16]} Qxa1
{[%clk 00:00:55]} {[%emt 00:00:21]} 42. Rxa1 {[%clk 00:02:42]} {[%emt
00:00:01]} Bxd5 {[%clk 00:00:45]} {[%emt 00:00:40]} 43. Bxd5 {[%clk 00:03:09]}
{[%emt 00:00:03]} Rd8 {[%clk 00:00:39]} {[%emt 00:00:37]} 44. Bb7 {[%clk
00:02:58]} {[%emt 00:00:40]} Rd6 {[%clk 00:01:04]} {[%emt 00:00:06]} 45. Kf1
{[%clk 00:02:45]} {[%emt 00:00:42]} Nc4 {[%clk 00:01:13]} {[%emt 00:00:22]} 46.
Ke2 {[%clk 00:01:54]} {[%emt 00:01:20]} Rd2+ {[%clk 00:01:01]} {[%emt
00:00:42]} 47. Kf3 {[%clk 00:02:23]} {[%emt 00:00:01]} Rd6 {[%clk 00:00:52]}
{[%emt 00:00:40]} 48. Ra2 {[%clk 00:02:13]} {[%emt 00:00:39]} Kf8 {[%clk
00:00:50]} {[%emt 00:00:32]} 49. Ke2 {[%clk 00:02:07]} {[%emt 00:00:36]} Ke7
{[%clk 00:01:08]} {[%emt 00:00:13]} 50. Be4 {[%clk 00:01:24]} {[%emt 00:01:11]}
Ke6 {[%clk 00:00:51]} {[%emt 00:00:49]} 51. Bd3 {[%clk 00:01:18]} {[%emt
00:00:35]} Ne5 {[%clk 00:00:39]} {[%emt 00:00:43]} 52. Rd2 {[%clk 00:01:47]} f5
{[%clk 00:00:56]} {[%emt 00:00:14]} 53. f4 {[%clk 00:01:16]} {[%emt 00:01:01]}
Nxd3 {[%clk 00:00:41]} {[%emt 00:00:46]} 54. Rxd3 {[%clk 00:01:44]} {[%emt
00:00:01]} Rc6 {[%clk 00:00:35]} {[%emt 00:00:37]} 55. Kd2 {[%clk 00:02:04]}
{[%emt 00:00:10]} Rc7 {[%clk 00:00:41]} {[%emt 00:00:24]} 56. Rd8 {[%clk
00:02:01]} {[%emt 00:00:32]} Rc6 {[%clk 00:00:56]} {[%emt 00:00:16]} 57. Rd3
{[%clk 00:01:39]} {[%emt 00:00:51]} Rc7 {[%clk 00:01:16]} {[%emt 00:00:10]} 58.
Rc3 {[%clk 00:01:45]} {[%emt 00:00:24]} Rd7+ {[%clk 00:01:38]} {[%emt
00:00:09]} 59. Kc2 {[%clk 00:02:12]} {[%emt 00:00:02]} Rd6 {[%clk 00:01:57]}
{[%emt 00:00:11]} 60. Rd3 {[%clk 00:00:45]} {[%emt 00:01:57]} Rc6+ {[%clk
00:02:25]} {[%emt 00:00:02]} 61. Kb2 {[%clk 00:00:52]} {[%emt 00:00:22]} Kf6
{[%clk 00:02:36]} {[%emt 00:00:20]} 62. Kb3 {[%clk 00:00:49]} {[%emt 00:00:33]}
Ke6 {[%clk 00:02:51]} {[%emt 00:00:15]} 63. Rd1 {[%clk 00:01:01]} {[%emt
00:00:17]} Rc4 {[%clk 00:02:27]} {[%emt 00:00:54]} 64. a4 {[%clk 00:00:41]}
{[%emt 00:00:50]} Re4 {[%clk 00:02:01]} {[%emt 00:00:55]} 65. Rd3 {[%clk
00:01:11]} {[%emt 00:00:01]} a5 {[%emt 00:03:04]} 66. bxa5 {[%emt 00:00:03]}
Rxa4 {[%emt 00:00:06]} 67. Rd2 {[%emt 00:00:31]} Rxa5 {[%emt 00:00:01]} 68. Kb4
Ra1 {[%emt 00:00:04]} 69. Rg2 {[%emt 00:00:09]} Rb1+ {[%emt 00:00:02]} 70. Kc5
{[%emt 00:00:17]} 1/2-1/2

[Event "Campeonato de Aragón Individual Absoluto 2022"]
[Site "Zaragoza, Spain"]
[Date "2022.09.01"]
[Round "6.2"]
[White "Ereza Vizcarra, Fernando"]
[Black "Vela Frago, Alberto"]
[Result "1/2-1/2"]
[TimeControl "90 min + 30 sg"]
[WhiteElo "2132"]
[BlackElo "2232"]

1. d4 {[%clk 01:30:58]} {[%emt 00:00:01]} Nf6 {[%clk 01:30:45]} {[%emt
00:00:15]} 2. Nf3 {[%clk 01:31:24]} {[%emt 00:00:04]} d5 {[%clk 01:31:07]}
{[%emt 00:00:08]} 3. e3 {[%clk 01:29:44]} {[%emt 00:02:10]} c5 {[%clk
01:30:16]} {[%emt 00:01:21]} 4. b3 {[%clk 01:30:09]} {[%emt 00:00:05]} g6
{[%clk 01:29:47]} {[%emt 00:00:58]} 5. Bb2 {[%clk 01:30:34]} {[%emt 00:00:05]}
Bg7 {[%clk 01:29:52]} {[%emt 00:00:26]} 6. Bd3 {[%clk 01:30:54]} {[%emt
00:00:10]} Nc6 {[%clk 01:29:19]} {[%emt 00:01:02]} 7. a3 {[%clk 01:31:03]}
{[%emt 00:00:22]} cxd4 {[%clk 01:27:03]} {[%emt 00:02:46]} 8. exd4 {[%clk
01:31:19]} {[%emt 00:00:14]} O-O {[%clk 01:27:22]} {[%emt 00:00:10]} 9. Nbd2
{[%clk 01:31:45]} {[%emt 00:00:04]} Nh5 {[%clk 01:26:53]} {[%emt 00:00:59]} 10.
O-O {[%clk 01:27:47]} {[%emt 00:04:29]} Nf4 {[%clk 01:26:44]} {[%emt 00:00:38]}
11. Bb5 {[%clk 01:27:39]} {[%emt 00:00:37]} Qb6 {[%clk 01:26:24]} {[%emt
00:00:50]} 12. Bxc6 {[%clk 01:27:28]} {[%emt 00:00:42]} bxc6 {[%clk 01:26:27]}
{[%emt 00:00:27]} 13. Ne5 {[%clk 01:26:45]} {[%emt 00:01:12]} Ba6 {[%clk
01:17:06]} {[%emt 00:09:51]} 14. Nd7 {[%clk 01:23:18]} {[%emt 00:03:58]} Qc7
{[%clk 01:17:35]} {[%emt 00:00:01]} 15. Nxf8 {[%clk 01:23:42]} {[%emt
00:00:05]} Bxf1 {[%clk 01:18:00]} {[%emt 00:00:05]} 16. Nxf1 {[%clk 01:21:59]}
{[%emt 00:02:14]} Rxf8 {[%clk 01:18:07]} {[%emt 00:00:22]} 17. Qd2 {[%clk
01:20:36]} {[%emt 00:01:53]} c5 {[%clk 01:15:30]} {[%emt 00:03:07]} 18. Re1
{[%clk 01:15:15]} {[%emt 00:05:50]} cxd4 {[%clk 01:10:18]} {[%emt 00:05:43]} 19.
Bxd4 {[%clk 01:15:36]} {[%emt 00:00:09]} e5 {[%clk 01:10:27]} {[%emt 00:00:20]}
20. Be3 {[%clk 01:15:47]} {[%emt 00:00:20]} d4 {[%clk 01:02:44]} {[%emt
00:08:13]} 21. Bxf4 {[%clk 01:16:13]} {[%emt 00:00:04]} exf4 {[%clk 01:03:13]}
22. Qd3 {[%clk 01:16:14]} {[%emt 00:00:29]} Rc8 {[%emt 00:02:00]} 23. Re2
{[%clk 01:14:46]} {[%emt 00:00:26]} h5 {[%clk 00:56:13]} {[%emt 00:07:31]} 24.
h3 {[%clk 01:14:26]} {[%emt 00:00:50]} Qa5 {[%clk 00:56:30]} {[%emt 00:00:13]}
25. a4 {[%clk 01:14:13]} {[%emt 00:00:44]} Rc3 {[%clk 00:40:23]} {[%emt
00:16:37]} 26. Qe4 {[%clk 01:12:15]} {[%emt 00:02:28]} f3 {[%clk 00:35:41]}
{[%emt 00:05:11]} 27. gxf3 {[%clk 01:11:38]} {[%emt 00:01:07]} Qg5+ {[%clk
00:34:44]} {[%emt 00:01:27]} 28. Ng3 {[%clk 01:07:36]} {[%emt 00:04:32]} h4
{[%clk 00:33:19]} {[%emt 00:01:55]} 29. f4 {[%clk 01:08:01]} {[%emt 00:00:06]}
Qd8 {[%clk 00:32:57]} {[%emt 00:00:51]} 30. Qe8+ {[%clk 01:04:14]} {[%emt
00:04:17]} Qxe8 {[%clk 00:32:58]} {[%emt 00:00:29]} 31. Rxe8+ {[%clk 01:04:30]}
{[%emt 00:00:14]} Kh7 {[%clk 00:28:45]} {[%emt 00:04:43]} 32. Ne4 {[%clk
01:04:50]} {[%emt 00:00:10]} Rxc2 {[%clk 00:29:14]} {[%emt 00:00:01]} 33. Ng5+
{[%clk 01:05:14]} {[%emt 00:00:05]} Kh6 {[%clk 00:29:43]} {[%emt 00:00:01]} 34.
Nxf7+ {[%clk 01:05:26]} {[%emt 00:00:18]} Kh7 {[%clk 00:30:08]} {[%emt
00:00:05]} 35. Ng5+ {[%clk 00:54:27]} {[%emt 00:11:30]} Kh6 {[%clk 00:30:37]}
{[%emt 00:00:02]} 36. Nf7+ {[%clk 00:54:48]} {[%emt 00:00:09]} Kh7 {[%clk
00:31:06]} {[%emt 00:00:01]} 37. Ng5+ {[%emt 00:00:59]} Kh6 {[%emt 00:00:10]}
38. Nf7+ {[%emt 00:00:05]} Kh7 39. Re7 {[%emt 00:00:07]} d3 {[%emt 00:00:04]}
1/2-1/2

[Event "Campeonato de Aragón Individual Absoluto 2022"]
[Site "Zaragoza, Spain"]
[Date "2022.09.01"]
[Round "6.3"]
[White "Olivan Lopez, Dario"]
[Black "Quintin Navarro, Alberto"]
[Result "0-1"]
[TimeControl "90 min + 30 sg"]
[WhiteElo "1768"]
[BlackElo "2372"]

1. e4 {[%clk 01:30:58]} e5 {[%clk 01:30:32]} {[%emt 00:00:28]} 2. Nf3 {[%clk
01:31:21]} {[%emt 00:00:06]} Nc6 {[%clk 01:30:58]} {[%emt 00:00:05]} 3. Bc4
{[%clk 01:30:57]} {[%emt 00:00:54]} Nf6 {[%clk 01:31:21]} {[%emt 00:00:07]} 4.
d3 {[%clk 01:30:53]} {[%emt 00:00:34]} Bc5 {[%clk 01:31:42]} {[%emt 00:00:09]}
5. c3 {[%clk 01:29:08]} {[%emt 00:02:16]} d6 {[%clk 01:32:07]} {[%emt
00:00:05]} 6. O-O {[%clk 01:26:48]} {[%emt 00:02:49]} a5 {[%clk 01:32:19]}
{[%emt 00:00:19]} 7. d4 {[%clk 01:25:52]} {[%emt 00:01:26]} Bb6 {[%clk
01:31:37]} {[%emt 00:01:11]} 8. dxe5 {[%clk 01:25:37]} {[%emt 00:00:45]} Nxe5
{[%clk 01:30:45]} {[%emt 00:01:22]} 9. Nxe5 {[%clk 01:25:56]} {[%emt 00:00:10]}
dxe5 {[%clk 01:31:10]} {[%emt 00:00:05]} 10. Qb3 {[%clk 01:23:50]} {[%emt
00:02:36]} O-O {[%clk 01:26:40]} {[%emt 00:05:00]} 11. Bg5 {[%clk 01:23:20]}
{[%emt 00:01:00]} Qe7 {[%clk 01:26:33]} {[%emt 00:00:37]} 12. Nd2 {[%clk
01:21:22]} {[%emt 00:02:28]} Rd8 {[%clk 01:26:16]} {[%emt 00:00:47]} 13. Kh1
{[%clk 01:18:55]} {[%emt 00:02:57]} h6 {[%clk 01:26:26]} {[%emt 00:00:20]} 14.
Bxf6 {[%clk 01:17:57]} {[%emt 00:01:28]} Qxf6 {[%clk 01:26:46]} {[%emt
00:00:09]} 15. Qc2 {[%clk 01:14:32]} {[%emt 00:03:56]} Qf4 {[%clk 01:25:50]}
{[%emt 00:01:26]} 16. Bd3 {[%clk 01:05:52]} {[%emt 00:09:09]} Be6 {[%clk
01:23:54]} {[%emt 00:02:26]} 17. Rad1 {[%clk 00:57:12]} {[%emt 00:09:10]} Rd7
{[%clk 01:15:49]} {[%emt 00:08:35]} 18. Nc4 {[%clk 00:55:04]} {[%emt 00:02:38]}
Bc5 {[%clk 01:15:38]} {[%emt 00:00:41]} 19. b4 {[%clk 00:48:16]} {[%emt
00:07:18]} axb4 {[%clk 01:15:11]} {[%emt 00:00:57]} 20. cxb4 {[%clk 00:48:46]}
Bxb4 {[%clk 01:14:26]} {[%emt 00:01:15]} 21. Qb2 {[%clk 00:47:53]} {[%emt
00:01:22]} Rxd3 {[%clk 01:13:16]} {[%emt 00:01:40]} 22. Rxd3 {[%clk 00:44:28]}
{[%emt 00:03:55]} Bxc4 {[%clk 01:13:24]} {[%emt 00:00:22]} 23. Rf3 {[%clk
00:44:57]} {[%emt 00:00:01]} Qd2 {[%clk 01:13:06]} {[%emt 00:00:48]} 24. Qxd2
{[%clk 00:42:36]} {[%emt 00:02:51]} Bxd2 {[%clk 01:13:30]} {[%emt 00:00:06]} 25.
Ra1 {[%clk 00:43:02]} {[%emt 00:00:03]} b5 {[%clk 01:13:17]} {[%emt 00:00:43]}
26. a3 {[%clk 00:40:40]} {[%emt 00:02:52]} b4 {[%clk 01:12:49]} {[%emt
00:00:58]} 27. Rd1 {[%clk 00:40:55]} {[%emt 00:00:16]} bxa3 {[%clk 01:12:51]}
{[%emt 00:00:28]} 28. Rxd2 {[%clk 00:41:16]} {[%emt 00:00:09]} a2 {[%clk
01:13:15]} {[%emt 00:00:06]} 29. Rxa2 {[%clk 00:41:42]} {[%emt 00:00:04]} Rxa2
{[%clk 01:13:40]} {[%emt 00:00:05]} 30. h3 {[%clk 00:41:34]} {[%emt 00:00:38]}
Rc2 {[%clk 01:13:56]} {[%emt 00:00:14]} 31. Rf5 {[%clk 00:41:56]} {[%emt
00:00:08]} f6 {[%clk 01:14:20]} {[%emt 00:00:06]} 32. f4 {[%clk 00:42:17]}
{[%emt 00:00:08]} Be6 {[%clk 01:14:29]} {[%emt 00:00:20]} 33. Rh5 {[%clk
00:42:30]} {[%emt 00:00:17]} Bf7 {[%clk 01:13:43]} {[%emt 00:01:16]} 34. Rh4
{[%clk 00:42:48]} {[%emt 00:00:12]} h5 {[%clk 01:13:56]} {[%emt 00:00:17]} 35.
g4 {[%clk 00:43:09]} {[%emt 00:00:09]} 0-1

[Event "Campeonato de Aragón Individual Absoluto 2022"]
[Site "Zaragoza, Spain"]
[Date "2022.09.01"]
[Round "6.4"]
[White "Galstyan, David"]
[Black "Carrasco Berges, Joaquin"]
[Result "1-0"]
[TimeControl "90 min + 30 sg"]
[WhiteElo "2035"]
[BlackElo "1559"]

1. e4 {[%clk 01:30:50]} {[%emt 00:00:05]} c5 {[%clk 01:30:50]} {[%emt
00:00:14]} 2. Nc3 {[%clk 01:31:06]} {[%emt 00:00:14]} d6 {[%clk 01:30:44]}
{[%emt 00:00:37]} 3. f4 {[%clk 01:31:18]} {[%emt 00:00:17]} a6 {[%clk
01:30:01]} {[%emt 00:01:14]} 4. a4 {[%clk 01:29:08]} {[%emt 00:02:40]} Qa5
{[%clk 01:27:03]} {[%emt 00:03:27]} 5. b3 {[%clk 01:22:39]} {[%emt 00:06:59]}
b5 {[%clk 01:25:49]} {[%emt 00:01:44]} 6. Bb2 {[%clk 01:22:56]} {[%emt
00:00:13]} b4 {[%clk 01:25:44]} {[%emt 00:00:35]} 7. Nd5 {[%clk 01:19:50]}
{[%emt 00:03:35]} e6 {[%clk 01:25:43]} {[%emt 00:00:32]} 8. Ne3 {[%clk
01:20:08]} {[%emt 00:00:12]} Bb7 {[%clk 01:22:50]} {[%emt 00:03:23]} 9. f5
{[%clk 01:12:57]} {[%emt 00:07:40]} Nf6 {[%clk 01:14:45]} {[%emt 00:08:34]} 10.
fxe6 {[%clk 01:08:24]} {[%emt 00:05:03]} fxe6 {[%clk 01:09:56]} {[%emt
00:05:20]} 11. e5 {[%clk 01:03:52]} {[%emt 00:05:02]} dxe5 {[%clk 01:09:59]}
{[%emt 00:00:27]} 12. Nc4 {[%clk 00:55:48]} {[%emt 00:08:34]} Qd8 {[%clk
01:04:37]} {[%emt 00:05:51]} 13. Nxe5 {[%clk 00:55:13]} {[%emt 00:01:05]} Bd6
{[%clk 01:01:22]} {[%emt 00:03:45]} 14. Ngf3 {[%clk 00:54:06]} {[%emt
00:01:37]} O-O {[%clk 00:58:36]} {[%emt 00:03:17]} 15. Bc4 {[%clk 00:52:27]}
{[%emt 00:02:08]} Nd5 {[%clk 00:45:52]} {[%emt 00:13:14]} 16. Qe2 {[%clk
00:36:59]} {[%emt 00:15:58]} Nf4 {[%clk 00:42:21]} {[%emt 00:04:02]} 17. Qf2
{[%clk 00:37:22]} {[%emt 00:00:07]} Bxe5 {[%clk 00:40:52]} {[%emt 00:01:59]} 18.
Bxe5 {[%clk 00:37:33]} {[%emt 00:00:20]} Nd7 {[%clk 00:34:14]} {[%emt
00:07:08]} 19. Bb2 {[%clk 00:34:02]} {[%emt 00:04:01]} Qe7 {[%clk 00:31:34]}
{[%emt 00:03:10]} 20. O-O-O {[%clk 00:30:11]} {[%emt 00:04:20]} Nxg2 {[%clk
00:31:40]} {[%emt 00:00:23]} 21. Qxg2 {[%clk 00:27:02]} {[%emt 00:03:40]} Bxf3
{[%clk 00:31:38]} {[%emt 00:00:32]} 22. Bxe6+ {[%clk 00:24:18]} {[%emt
00:03:15]} Kh8 {[%clk 00:32:07]} {[%emt 00:00:01]} 23. Qh3 {[%clk 00:23:25]}
{[%emt 00:01:23]} Bxh1 {[%clk 00:28:20]} {[%emt 00:04:16]} 24. Bxd7 {[%clk
00:21:48]} {[%emt 00:02:08]} Be4 {[%clk 00:25:39]} {[%emt 00:03:10]} 25. Rg1
{[%clk 00:19:10]} {[%emt 00:03:08]} Bg6 {[%clk 00:24:24]} {[%emt 00:01:45]} 26.
Be6 {[%clk 00:19:26]} {[%emt 00:00:15]} Rf6 {[%clk 00:23:13]} {[%emt 00:01:41]}
27. Bxf6 {[%clk 00:18:07]} {[%emt 00:01:50]} Qxf6 {[%clk 00:23:36]} {[%emt
00:00:07]} 28. Kb1 {[%clk 00:18:05]} {[%emt 00:00:32]} Re8 {[%clk 00:17:35]}
{[%emt 00:06:31]} 29. Bc4 {[%clk 00:17:55]} {[%emt 00:00:40]} Qf5 {[%clk
00:16:50]} {[%emt 00:01:15]} 30. Qxf5 {[%clk 00:17:14]} {[%emt 00:01:10]} Bxf5
{[%clk 00:17:13]} {[%emt 00:00:07]} 31. Bxa6 {[%clk 00:15:35]} {[%emt
00:02:09]} g6 {[%clk 00:15:47]} {[%emt 00:01:55]} 32. Bb5 {[%clk 00:15:50]}
{[%emt 00:00:16]} Rd8 {[%clk 00:15:52]} {[%emt 00:00:25]} 33. d3 {[%clk
00:15:48]} {[%emt 00:00:32]} Kg7 {[%clk 00:15:14]} {[%emt 00:01:08]} 34. Re1
{[%clk 00:15:57]} {[%emt 00:00:21]} Kf6 {[%clk 00:15:28]} {[%emt 00:00:15]} 35.
a5 {[%clk 00:15:19]} {[%emt 00:01:09]} Be6 {[%clk 00:15:20]} {[%emt 00:00:38]}
36. a6 {[%clk 00:14:29]} {[%emt 00:01:21]} Rb8 {[%clk 00:14:26]} {[%emt
00:01:23]} 37. Bc6 {[%clk 00:14:49]} {[%emt 00:00:10]} 1-0

[Event "Campeonato de Aragón Individual Absoluto 2022"]
[Site "Zaragoza, Spain"]
[Date "2022.09.01"]
[Round "6.5"]
[White "Sanjuan Segura, Ignacio"]
[Black "Perez Tomas, Juan Manuel"]
[Result "1/2-1/2"]
[TimeControl "90 min + 30 sg"]
[WhiteElo "1815"]
[BlackElo "1664"]

1. d4 {[%clk 01:30:58]} {[%emt 00:00:01]} d5 {[%clk 01:30:54]} {[%emt
00:00:07]} 2. Nf3 {[%clk 01:31:15]} {[%emt 00:00:12]} e6 {[%clk 01:31:17]}
{[%emt 00:00:07]} 3. c4 {[%clk 01:31:28]} {[%emt 00:00:17]} Nf6 {[%clk
01:31:40]} {[%emt 00:00:07]} 4. g3 {[%clk 01:31:32]} {[%emt 00:00:26]} Be7
{[%clk 01:31:45]} {[%emt 00:00:25]} 5. Bg2 {[%clk 01:31:57]} {[%emt 00:00:06]}
O-O {[%clk 01:32:09]} {[%emt 00:00:06]} 6. O-O {[%clk 01:32:19]} {[%emt
00:00:07]} c6 {[%clk 01:32:27]} {[%emt 00:00:12]} 7. Qc2 {[%clk 01:32:43]}
{[%emt 00:00:05]} b6 {[%clk 01:32:50]} {[%emt 00:00:08]} 8. Nbd2 {[%clk
01:33:08]} {[%emt 00:00:05]} Nbd7 {[%clk 01:32:21]} {[%emt 00:00:59]} 9. e4
{[%clk 01:33:19]} {[%emt 00:00:19]} dxe4 {[%clk 01:24:20]} {[%emt 00:08:31]} 10.
Nxe4 {[%clk 01:33:47]} {[%emt 00:00:02]} Bb7 {[%clk 01:24:42]} {[%emt
00:00:08]} 11. Rd1 {[%clk 01:34:01]} {[%emt 00:00:15]} Qc7 {[%clk 01:24:51]}
{[%emt 00:00:22]} 12. Bf4 {[%clk 01:33:47]} {[%emt 00:00:44]} Qc8 {[%clk
01:24:33]} {[%emt 00:00:49]} 13. Nd6 {[%clk 01:32:48]} {[%emt 00:01:28]} Bxd6
{[%clk 01:24:51]} {[%emt 00:00:13]} 14. Bxd6 {[%clk 01:33:16]} {[%emt
00:00:01]} Re8 {[%clk 01:25:18]} {[%emt 00:00:03]} 15. c5 {[%clk 01:31:00]}
{[%emt 00:02:47]} Nd5 {[%clk 01:23:11]} {[%emt 00:02:37]} 16. Ng5 {[%clk
01:24:38]} {[%emt 00:06:51]} N7f6 {[%clk 01:21:33]} {[%emt 00:02:09]} 17. a3
{[%clk 01:23:27]} {[%emt 00:01:41]} h6 {[%clk 01:13:34]} {[%emt 00:08:29]} 18.
Ne4 {[%clk 01:23:37]} {[%emt 00:00:20]} Qd8 {[%clk 01:13:35]} {[%emt 00:00:30]}
19. b4 {[%clk 01:20:42]} {[%emt 00:03:25]} Nxe4 {[%clk 01:01:46]} {[%emt
00:12:19]} 20. Bxe4 {[%clk 01:21:10]} {[%emt 00:00:02]} a5 {[%clk 01:02:16]} 21.
Qd2 {[%clk 01:18:21]} {[%emt 00:03:19]} a4 {[%clk 00:49:37]} {[%emt 00:13:10]}
22. Bxd5 {[%clk 01:18:15]} {[%emt 00:00:35]} exd5 {[%clk 00:49:30]} {[%emt
00:00:38]} 23. Re1 {[%clk 01:18:21]} {[%emt 00:00:24]} Qd7 {[%clk 00:47:18]}
{[%emt 00:02:42]} 24. Qf4 {[%clk 01:12:46]} {[%emt 00:06:04]} bxc5 {[%clk
00:45:09]} {[%emt 00:02:41]} 25. Bxc5 {[%clk 01:10:09]} {[%emt 00:03:06]} Re6
{[%clk 00:42:01]} {[%emt 00:03:38]} 26. Rxe6 {[%clk 01:09:51]} {[%emt
00:00:48]} Qxe6 {[%clk 00:42:30]} {[%emt 00:00:01]} 27. Qe5 {[%clk 01:10:20]}
Re8 {[%clk 00:40:52]} {[%emt 00:02:10]} 28. Re1 {[%clk 01:10:29]} {[%emt
00:00:20]} Bc8 {[%clk 00:40:56]} {[%emt 00:00:27]} 29. f4 {[%clk 01:10:30]}
{[%emt 00:00:29]} f6 {[%clk 00:41:25]} {[%emt 00:00:02]} 30. Qxe6+ {[%clk
01:10:49]} {[%emt 00:00:11]} Rxe6 {[%clk 00:41:53]} {[%emt 00:00:02]} 31. Rxe6
{[%clk 01:11:03]} {[%emt 00:00:16]} Bxe6 {[%clk 00:42:21]} {[%emt 00:00:01]}
1/2-1/2